[Event "Moscow Rapid-ch 2018"]
[Site "Moscow"]
[Date "2018.12.08"]
[Round "6"]
[White "Dudin, Gleb"]
[Black "Dvalishvili, Pavel S."]
[Result "0-1"]
[ECO "A40"]
[WhiteElo "2303"]
[BlackElo "2396"]
[Annotator "NA"]
[PlyCount "86"]
[EventDate "2018.12.08"]
[EventType "swiss"]
[EventCountry "RUS"]
[SourceTitle "playchess.com"]
[Source "ChessBase"]
[SourceQuality "1"]
[TimeControl "900+10"]

1. d4 {[%emt 0:00:00]} g6 {[%emt 0:00:00]} 2. c4 {[%emt 0:00:00]} Bg7 {[%emt 0:00:00]} 3. Nf3 {[%emt 0:00:04]} c5 {[%emt 0:00:00]} 4. d5 {[%emt 0:01:17]} b5 {[%emt 0:00:00]} 5. cxb5 {[%emt 0:00:03]} a6 {[%emt 0:00:00]} 6. b6 {[%emt 0:00:02]} Qxb6 {[%emt 0:00:03]} 7. Nc3 {[%emt 0:00:05]} Nf6 {[%emt 0:00:03]} 8. e4 {[%emt 0:00:05]} d6 {[%emt 0:00:01]} 9. a4 {[%emt 0:00:18]} O-O {[%emt 0:00:07]} 10. a5 {[%emt 0:00:02]} Qc7 {[%emt 0:00:02]} 11. Bc4 {[%emt 0:00:05]} Bg4 {[%emt 0:00:53]} 12. h3 {[%emt 0:01:47]} Bxf3 {[%emt 0:00:02]} 13. gxf3 {[%emt 0:00:02]} Nbd7 {[%emt 0:00:05]} 14. f4 {[%emt 0:00:24]} Rfb8 {[%emt 0:00:01]} 15. Qd3 {[%emt 0:00:26]} Qb7 {[%emt 0:01:59]} 16. O-O {[%emt 0:01:37]} Ne8 {[%emt 0:00:02]} 17. h4 Nc7 18. h5 {[%emt 0:01:16]} Nb5 {[%emt 0:00:27]} 19. hxg6 {[%emt 0:00:09]} fxg6 {[%emt 0:00:01]} 20. e5 {[%emt 0:00:29]} Nd4 {[%emt 0:00:17]} 21. e6 {[%emt 0:00:43]} Nf6 {[%emt 0:00:03]} 22. Kg2 {[%emt 0:00:14]} Nb3 {[%emt 0:00:14]} 23. Ra2 {[%emt 0:00:23]} Nxc1 {[%emt 0:00:04]} 24. Rxc1 {[%emt 0:00:01]} Nh5 {[%emt 0:00:04]} 25. Ne2 {[%emt 0:00:26]} Rf8 {[%emt 0:00:02]} 26. Ra4 {[%emt 0:03:46]} Qxb2 {[%emt 0:00:37]} 27. Rc2 {[%emt 0:00:36]} Qb7 {[%emt 0:00:16]} 28. Ba2 {[%emt 0:00:12]} Qb5 {[%emt 0:00:40]} 29. Qa3 {[%emt 0:00:39]} Bd4 {[%emt 0:00:29]} 30. Bc4 {[%emt 0:03:01]} Qb7 {[%emt 0:00:10]} 31. Qf3 {[%emt 0:00:15]} Rf6 {[%emt 0:00:49]} 32. Bd3 {[%emt 0:00:18]} Raf8 {[%emt 0:00:22]} 33. Rxd4 {[%emt 0:00:58]} cxd4 {[%emt 0:00:03]} 34. f5 {[%emt 0:00:01]} Rxf5 {[%emt 0:00:15]} 35. Bxf5 {[%emt 0:00:18]} Rxf5 {[%emt 0:00:00]} 36. Qe4 {[%emt 0:00:14]} Nf6 {[%emt 0:00:36]} 37. Qxd4 {[%emt 0:00:29]} Rxd5 {[%emt 0:00:01]} 38. Qb6 {[%emt 0:00:01]} Rg5+ {[%emt 0:00:02]} 39. Kf1 {[%emt 0:00:11]} Qh1+ {[%emt 0:00:01]} 40. Ng1 {[%emt 0:00:13]} Rxg1+ {[%emt 0:00:03]} 41. Ke2 {[%emt 0:00:00]} Qe4+ 42. Kd2 {[%emt 0:00:05]} Qe1+ {[%emt 0:00:26]} 43. Kd3 {[%emt 0:00:01]} Qd1+ {[%emt 0:00:30]} 0-1

[Event "Moscow Rapid-ch 2018"]
[Site "Moscow"]
[Date "2018.12.08"]
[Round "6"]
[White "Gurvich, Vitaly"]
[Black "Vlasov, Sergey"]
[Result "1/2-1/2"]
[ECO "D30"]
[WhiteElo "2270"]
[BlackElo "2229"]
[Annotator "NA"]
[PlyCount "97"]
[EventDate "2018.12.08"]
[EventType "swiss"]
[EventCountry "RUS"]
[SourceTitle "playchess.com"]
[Source "ChessBase"]
[SourceQuality "1"]
[TimeControl "900+10"]

1. d4 {[%emt 0:00:00]} Nf6 {[%emt 0:00:00]} 2. c4 {[%emt 0:00:00]} e6 {[%emt 0:00:00]} 3. Nf3 {[%emt 0:00:00]} d5 {[%emt 0:00:43]} 4. Bg5 {[%emt 0:00:00]} Nbd7 {[%emt 0:00:07]} 5. e3 {[%emt 0:00:02]} Be7 {[%emt 0:00:16]} 6. Nc3 {[%emt 0:00:04]} h6 {[%emt 0:01:22]} 7. Bh4 {[%emt 0:00:02]} Ne4 {[%emt 0:00:35]} 8. Bxe7 {[%emt 0:00:07]} Qxe7 {[%emt 0:00:02]} 9. cxd5 {[%emt 0:00:02]} Nxc3 {[%emt 0:00:06]} 10. bxc3 {[%emt 0:00:01]} exd5 {[%emt 0:00:02]} 11. Qb3 {[%emt 0:00:02]} c6 {[%emt 0:00:18]} 12. a4 {[%emt 0:00:06]} a5 {[%emt 0:00:26]} 13. Be2 {[%emt 0:00:09]} O-O {[%emt 0:00:06]} 14. O-O {[%emt 0:00:03]} Nf6 {[%emt 0:04:08]} 15. Ne5 {[%emt 0:00:43]} Ne4 {[%emt 0:00:42]} 16. Qb2 {[%emt 0:00:04]} Qc7 {[%emt 0:00:57]} 17. c4 {[%emt 0:00:43]} dxc4 {[%emt 0:00:11]} 18. Bxc4 {[%emt 0:00:12]} Nd6 {[%emt 0:00:02]} 19. Bb3 {[%emt 0:00:26]} Bf5 {[%emt 0:00:11]} 20. Rac1 {[%emt 0:00:11]} Rae8 {[%emt 0:00:39]} 21. f3 {[%emt 0:00:23]} Qe7 {[%emt 0:00:36]} 22. Rfe1 {[%emt 0:00:39]} Be6 {[%emt 0:00:40]} 23. Qc3 {[%emt 0:01:45]} Bxb3 {[%emt 0:00:44]} 24. Qxb3 {[%emt 0:00:02]} Qe6 {[%emt 0:02:57]} 25. Qc3 {[%emt 0:00:20]} Ra8 {[%emt 0:00:05]} 26. Rb1 {[%emt 0:00:34]} Rfe8 {[%emt 0:00:03]} 27. Qb3 {[%emt 0:01:31]} Qxb3 {[%emt 0:00:17]} 28. Rxb3 {[%emt 0:00:01]} f6 {[%emt 0:00:15]} 29. Nd3 {[%emt 0:00:09]} b5 {[%emt 0:00:56]} 30. Nc5 {[%emt 0:00:06]} b4 {[%emt 0:00:20]} 31. Kf2 {[%emt 0:00:19]} Kf7 {[%emt 0:00:02]} 32. Rc1 {[%emt 0:00:10]} Rec8 {[%emt 0:00:17]} 33. Nd3 {[%emt 0:00:33]} Ke7 {[%emt 0:00:21]} 34. g4 {[%emt 0:00:36]} Kd8 {[%emt 0:00:31]} 35. Nc5 {[%emt 0:00:12]} Ke7 {[%emt 0:00:09]} 36. h4 {[%emt 0:00:18]} Rc7 {[%emt 0:00:09]} 37. Rg1 {[%emt 0:00:31]} Nc4 {[%emt 0:00:38]} 38. g5 {[%emt 0:00:48]} hxg5 {[%emt 0:00:20]} 39. hxg5 {[%emt 0:00:01]} Kf7 {[%emt 0:00:21]} 40. gxf6 {[%emt 0:01:22]} Kxf6 {[%emt 0:00:33]} 41. Rbb1 {[%emt 0:02:19]} Rh8 {[%emt 0:00:05]} 42. Rg2 {[%emt 0:00:10]} Rf7 {[%emt 0:00:33]} 43. Rc1 {[%emt 0:00:22]} Nd6 {[%emt 0:00:04]} 44. Nd3 {[%emt 0:00:35]} Rc8 {[%emt 0:00:15]} 45. Ne5 {[%emt 0:00:15]} Re7 {[%emt 0:00:09]} 46. Rg6+ {[%emt 0:00:06]} Kf5 {[%emt 0:00:05]} 47. Rxd6 {[%emt 0:00:06]} c5 {[%emt 0:00:13]} 48. e4+ {[%emt 0:00:13]} Kg5 {[%emt 0:00:04]} 49. Rg6+ {[%emt 0:00:07]} 1/2-1/2

[Event "Moscow Rapid-ch 2018"]
[Site "Moscow"]
[Date "2018.12.08"]
[Round "6"]
[White "Utiatskaja, Irina"]
[Black "Paramzina, Anastasya"]
[Result "0-1"]
[ECO "B90"]
[WhiteElo "2246"]
[BlackElo "2229"]
[Annotator "NA"]
[PlyCount "73"]
[EventDate "2018.12.08"]
[EventType "swiss"]
[EventCountry "RUS"]
[SourceTitle "playchess.com"]
[Source "ChessBase"]
[SourceQuality "1"]
[TimeControl "900+10"]

1. e4 {[%emt 0:00:00]} c5 {[%emt 0:00:00]} 2. Nf3 {[%emt 0:00:00]} d6 {[%emt 0:00:00]} 3. d4 {[%emt 0:00:00]} cxd4 {[%emt 0:00:00]} 4. Nxd4 {[%emt 0:00:00]} Nf6 {[%emt 0:00:00]} 5. Nc3 {[%emt 0:00:00]} a6 {[%emt 0:00:01]} 6. Be3 {[%emt 0:00:00]} e6 {[%emt 0:00:10]} 7. g4 {[%emt 0:00:30]} h6 {[%emt 0:00:30]} 8. Rg1 {[%emt 0:02:00]} Nc6 {[%emt 0:00:37]} 9. h4 {[%emt 0:00:28]} d5 {[%emt 0:02:38]} 10. exd5 {[%emt 0:00:44]} Nxd5 {[%emt 0:00:14]} 11. Nxd5 {[%emt 0:00:11]} Qxd5 {[%emt 0:00:12]} 12. Bg2 {[%emt 0:00:13]} Qa5+ {[%emt 0:00:21]} 13. c3 {[%emt 0:00:49]} Ne5 {[%emt 0:01:32]} 14. Qe2 {[%emt 0:00:56]} Be7 {[%emt 0:00:47]} 15. g5 {[%emt 0:02:06]} h5 {[%emt 0:03:02]} 16. a3 {[%emt 0:01:09]} Ng6 {[%emt 0:00:22]} 17. Rh1 {[%emt 0:02:32]} e5 {[%emt 0:00:41]} 18. Nc2 {[%emt 0:00:33]} Qa4 {[%emt 0:00:55]} 19. O-O-O {[%emt 0:00:45]} Nxh4 {[%emt 0:01:10]} 20. Bd5 {[%emt 0:00:07]} g6 {[%emt 0:00:59]} 21. b3 {[%emt 0:00:40]} Qg4 {[%emt 0:00:32]} 22. f3 {[%emt 0:00:29]} Qg2 {[%emt 0:00:06]} 23. Qc4 {[%emt 0:00:24]} Bf5 {[%emt 0:00:02]} 24. Bxf7+ {[%emt 0:01:42]} Kf8 {[%emt 0:00:01]} 25. Bd2 {[%emt 0:00:10]} Rc8 {[%emt 0:00:21]} 26. Qxh4 {[%emt 0:00:08]} Rxc3 {[%emt 0:00:08]} 27. Qe4 {[%emt 0:01:03]} Bxe4 {[%emt 0:00:06]} 28. fxe4 {[%emt 0:00:00]} Rxc2+ {[%emt 0:00:16]} 29. Kxc2 {[%emt 0:00:06]} Qxe4+ {[%emt 0:00:28]} 30. Kb2 {[%emt 0:00:01]} Kxf7 {[%emt 0:00:02]} 31. Rhf1+ {[%emt 0:00:15]} Ke6 {[%emt 0:00:33]} 32. Rfe1 {[%emt 0:00:42]} Qd4+ {[%emt 0:00:50]} 33. Bc3 {[%emt 0:00:13]} Bxa3+ {[%emt 0:00:06]} 34. Kc2 {[%emt 0:00:25]} Qf2+ {[%emt 0:00:02]} 35. Kb1 {[%emt 0:00:13]} Bd6 {[%emt 0:00:10]} 36. Rxd6+ {[%emt 0:00:56]} Kxd6 {[%emt 0:00:06]} 37. Bxe5+ {[%emt 0:00:04] Kxe5} 0-1

[Event "Moscow Rapid-ch 2018"]
[Site "Moscow"]
[Date "2018.12.08"]
[Round "6"]
[White "Strutinskaia, Galina"]
[Black "Zaitseva, Lyudmila"]
[Result "1-0"]
[ECO "A01"]
[WhiteElo "2201"]
[BlackElo "1931"]
[Annotator "NA"]
[PlyCount "63"]
[EventDate "2018.12.08"]
[EventType "swiss"]
[EventCountry "RUS"]
[SourceTitle "playchess.com"]
[Source "ChessBase"]
[SourceQuality "1"]
[TimeControl "900+10"]

1. b3 Nf6 2. Bb2 g6 3. f4 Bg7 4. Nf3 O-O 5. e3 a6 6. Be2 b5 7. O-O Bb7 8. d3 d6 9. Qe1 Nbd7 10. Qh4 c5 11. Nbd2 Rc8 12. a4 d5 13. c4 dxc4 14. bxc4 b4 15. a5 Nb8 16. f5 Nc6 17. fxg6 fxg6 18. Ng5 h6 19. Ne6 Qd6 20. Nxf8 Rxf8 21. Nb3 g5 22. Qg3 e5 23. Rad1 Qe7 24. h4 gxh4 25. Qxh4 Nd8 26. Rf5 Nf7 27. Rdf1 Kh7 28. Rxf6 Bxf6 29. Qxf6 Qxf6 30. Rxf6 Kg7 31. Rb6 Bc8 32. Nxc5 1-0

[Event "Moscow Rapid-ch 2018"]
[Site "Moscow"]
[Date "2018.12.08"]
[Round "6"]
[White "Chudinovskikh, Alexander M"]
[Black "Andreev, Konstantin"]
[Result "1-0"]
[ECO "B30"]
[WhiteElo "2184"]
[BlackElo "2276"]
[Annotator "NA"]
[PlyCount "47"]
[EventDate "2018.12.08"]
[EventType "swiss"]
[EventCountry "RUS"]
[SourceTitle "playchess.com"]
[Source "ChessBase"]
[SourceQuality "1"]
[TimeControl "900+10"]

1. e4 c5 2. Nf3 Nc6 3. Bb5 e6 4. O-O Nge7 5. Re1 Ng6 6. c3 Be7 7. d4 O-O 8. d5 Qb6 9. Bf1 Na5 10. c4 e5 11. Bd2 Qc7 12. d6 Bxd6 13. Bxa5 Qxa5 14. Qxd6 Nh4 15. Nc3 Nxf3+ 16. gxf3 Qb4 17. Nd5 Qxb2 18. Ne7+ Kh8 19. Ng6+ hxg6 20. Qxf8+ Kh7 21. Rad1 b6 22. Qxf7 Qxa2 23. Rd6 g5 24. Bh3 1-0

[Event "Moscow Rapid-ch 2018"]
[Site "Moscow"]
[Date "2018.12.08"]
[Round "6"]
[White "Gorovenko, Darya"]
[Black "Chasovnikova, Eugenia"]
[Result "0-1"]
[ECO "A61"]
[WhiteElo "2163"]
[BlackElo "2201"]
[Annotator "NA"]
[PlyCount "64"]
[EventDate "2018.12.08"]
[EventType "swiss"]
[EventCountry "RUS"]
[SourceTitle "playchess.com"]
[Source "ChessBase"]
[SourceQuality "1"]
[TimeControl "900+10"]

1. d4 {[%emt 0:00:00]} Nf6 {[%emt 0:00:00]} 2. Nf3 {[%emt 0:00:00]} c5 {[%emt 0:00:00]} 3. d5 {[%emt 0:00:00]} e6 {[%emt 0:00:00]} 4. c4 {[%emt 0:00:00]} exd5 {[%emt 0:00:00]} 5. cxd5 {[%emt 0:00:00]} d6 {[%emt 0:00:00]} 6. Nc3 {[%emt 0:00:00]} g6 {[%emt 0:00:00]} 7. Qa4+ {[%emt 0:00:05]} Bd7 {[%emt 0:00:18]} 8. Qb3 {[%emt 0:00:01]} b6 {[%emt 0:00:28]} 9. Bf4 {[%emt 0:00:12]} Nh5 {[%emt 0:01:04]} 10. Bg5 {[%emt 0:00:02]} Be7 {[%emt 0:01:42]} 11. Bh6 {[%emt 0:00:59]} Bf8 {[%emt 0:02:03]} 12. Bxf8 {[%emt 0:00:30]} Kxf8 {[%emt 0:00:02]} 13. Ne4 {[%emt 0:00:25]} Qe7 {[%emt 0:01:06]} 14. Qc3 {[%emt 0:00:26]} f6 {[%emt 0:01:08]} 15. Ng3 {[%emt 0:01:41]} Nxg3 {[%emt 0:01:41]} 16. hxg3 {[%emt 0:00:02]} Kg7 {[%emt 0:00:22]} 17. e3 {[%emt 0:00:10]} b5 {[%emt 0:00:35]} 18. Bd3 {[%emt 0:00:28]} Na6 {[%emt 0:00:35]} 19. O-O-O {[%emt 0:03:20]} c4 {[%emt 0:00:14]} 20. Bc2 {[%emt 0:00:19]} Rac8 {[%emt 0:00:51]} 21. Kb1 {[%emt 0:01:33]} b4 {[%emt 0:00:07]} 22. Qd4 {[%emt 0:00:02]} b3 {[%emt 0:00:48]} 23. axb3 {[%emt 0:00:03]} cxb3 {[%emt 0:00:07]} 24. Bxb3 {[%emt 0:00:01]} Bf5+ {[%emt 0:00:27]} 25. e4 {[%emt 0:01:39]} Bxe4+ {[%emt 0:00:15]} 26. Ka2 {[%emt 0:00:01]} Rc5 {[%emt 0:00:58]} 27. Rhe1 {[%emt 0:01:10]} Ra5+ {[%emt 0:00:05]} 28. Ba4 {[%emt 0:00:01]} Nc5 {[%emt 0:00:08]} 29. b3 {[%emt 0:00:02]} Qb7 {[%emt 0:00:33]} 30. Rxe4 {[%emt 0:01:57]} Qxb3+ {[%emt 0:00:23]} 31. Ka1 {[%emt 0:00:09]} Nxe4 {[%emt 0:01:29]} 32. Qxe4 {[%emt 0:00:29]} Rxa4+ {[%emt 0:00:23]} 0-1

[Event "Moscow Rapid-ch 2018"]
[Site "Moscow"]
[Date "2018.12.08"]
[Round "6"]
[White "Kanevskaya, Anna"]
[Black "Martynyuk, Elizaveta"]
[Result "1/2-1/2"]
[ECO "D11"]
[WhiteElo "2105"]
[BlackElo "2128"]
[Annotator "NA"]
[PlyCount "162"]
[EventDate "2018.12.08"]
[EventType "swiss"]
[EventCountry "RUS"]
[SourceTitle "playchess.com"]
[Source "ChessBase"]
[SourceQuality "1"]
[TimeControl "900+10"]

1. d4 {[%emt 0:00:00]} d5 {[%emt 0:00:00]} 2. c4 {[%emt 0:00:01]} c6 {[%emt 0:00:00]} 3. Nf3 {[%emt 0:00:03]} Nf6 {[%emt 0:00:00]} 4. g3 {[%emt 0:00:10]} Bf5 {[%emt 0:00:00]} 5. Nc3 {[%emt 0:00:48]} e6 {[%emt 0:00:01]} 6. Bg2 {[%emt 0:00:09]} h6 {[%emt 0:00:08]} 7. O-O {[%emt 0:00:12]} Be7 {[%emt 0:00:02]} 8. Nd2 {[%emt 0:00:43]} O-O {[%emt 0:00:05]} 9. b3 {[%emt 0:00:24]} Nbd7 {[%emt 0:00:32]} 10. Bb2 {[%emt 0:00:05]} a5 {[%emt 0:00:10]} 11. e3 {[%emt 0:00:08]} Qb6 {[%emt 0:01:49]} 12. Qe2 {[%emt 0:00:19]} dxc4 {[%emt 0:00:55]} 13. Nxc4 {[%emt 0:00:09]} Qa6 {[%emt 0:00:03]} 14. e4 {[%emt 0:02:06]} Bg6 {[%emt 0:00:12]} 15. Rad1 {[%emt 0:02:06]} Rfe8 {[%emt 0:01:46]} 16. Rfe1 {[%emt 0:00:21]} Rad8 {[%emt 0:01:21]} 17. h3 {[%emt 0:00:09]} b5 {[%emt 0:00:39]} 18. Ne3 {[%emt 0:01:04]} Qa7 {[%emt 0:01:43]} 19. e5 {[%emt 0:03:38]} Nd5 {[%emt 0:00:08]} 20. Ncxd5 {[%emt 0:00:04]} cxd5 {[%emt 0:00:46]} 21. Qxb5 {[%emt 0:00:53]} Rb8 {[%emt 0:00:04]} 22. Qe2 {[%emt 0:00:35]} a4 {[%emt 0:00:04]} 23. f4 {[%emt 0:01:04]} axb3 {[%emt 0:00:12]} 24. axb3 {[%emt 0:00:01]} Rxb3 {[%emt 0:00:20]} 25. f5 {[%emt 0:00:32]} Bxf5 {[%emt 0:00:13]} 26. Nxf5 {[%emt 0:00:02]} exf5 {[%emt 0:00:04]} 27. Rd3 {[%emt 0:01:31]} Rxd3 {[%emt 0:00:50]} 28. Qxd3 {[%emt 0:00:04]} Bb4 {[%emt 0:00:22]} 29. Rf1 {[%emt 0:00:59]} Rxe5 {[%emt 0:00:55]} 30. Kh1 {[%emt 0:00:15]} Re7 {[%emt 0:01:50]} 31. Bxd5 {[%emt 0:00:37]} Nf6 {[%emt 0:00:14]} 32. Bg2 {[%emt 0:00:17]} Qa2 {[%emt 0:00:46]} 33. Qb1 {[%emt 0:00:38]} Qb3 {[%emt 0:01:20]} 34. Ba1 {[%emt 0:00:10]} Qa3 {[%emt 0:00:54]} 35. Qb2 {[%emt 0:00:18]} Qxb2 {[%emt 0:00:29]} 36. Bxb2 {[%emt 0:00:02]} Re2 {[%emt 0:00:02]} 37. Bc1 {[%emt 0:00:10]} Bd6 {[%emt 0:00:09]} 38. Bf4 {[%emt 0:00:18]} Bxf4 {[%emt 0:00:14]} 39. Rxf4 {[%emt 0:00:02]} Nh5 {[%emt 0:00:14]} 40. Rf3 {[%emt 0:00:10]} Rd2 {[%emt 0:00:04]} 41. Kh2 {[%emt 0:00:15]} Rxd4 {[%emt 0:00:09]} 42. Rxf5 {[%emt 0:00:03]} g6 {[%emt 0:00:10]} 43. Rf2 {[%emt 0:00:19]} Kg7 {[%emt 0:00:05]} 44. Bf3 {[%emt 0:00:07]} Nf6 {[%emt 0:00:04]} 45. Kg2 {[%emt 0:00:06]} h5 {[%emt 0:00:11]} 46. h4 {[%emt 0:00:17]} Nd7 {[%emt 0:00:08]} 47. Re2 {[%emt 0:00:05]} Nc5 {[%emt 0:00:07]} 48. Rc2 {[%emt 0:00:06]} Ne6 {[%emt 0:00:09]} 49. Re2 {[%emt 0:00:10]} Rd3 {[%emt 0:00:10]} 50. Be4 {[%emt 0:00:19]} Rd1 {[%emt 0:00:16]} 51. Rf2 {[%emt 0:00:08]} Rd4 {[%emt 0:00:23]} 52. Bb1 {[%emt 0:00:11]} Nc5 {[%emt 0:00:13]} 53. Ba2 {[%emt 0:00:06]} f6 {[%emt 0:00:04]} 54. Bb1 {[%emt 0:00:12]} Rb4 {[%emt 0:00:21]} 55. Bc2 {[%emt 0:00:07]} Rb2 {[%emt 0:00:43]} 56. Bd1 {[%emt 0:00:05]} Rxf2+ {[%emt 0:00:06]} 57. Kxf2 {[%emt 0:00:03]} Ne4+ {[%emt 0:00:13]} 58. Kf3 {[%emt 0:00:05]} Nd6 {[%emt 0:00:15]} 59. Kf4 {[%emt 0:00:07]} Kh6 {[%emt 0:00:16]} 60. Bc2 {[%emt 0:00:07]} Nc4 {[%emt 0:00:12]} 61. Bd3 {[%emt 0:00:30]} Ne5 {[%emt 0:00:24]} 62. Be2 {[%emt 0:00:02]} Nc6 {[%emt 0:00:06]} 63. Ke4 {[%emt 0:00:21]} Ne7 {[%emt 0:00:08]} 64. Bd1 {[%emt 0:00:12]} g5 {[%emt 0:00:03]} 65. hxg5+ {[%emt 0:00:03]} Kxg5 {[%emt 0:00:03]} 66. Kf3 {[%emt 0:00:15]} Nf5 {[%emt 0:00:07]} 67. Kf2 {[%emt 0:00:14]} Nh6 {[%emt 0:00:06]} 68. Be2 {[%emt 0:00:12]} Ng4+ {[%emt 0:00:06]} 69. Kf3 {[%emt 0:00:05]} Ne5+ {[%emt 0:00:10]} 70. Kf2 {[%emt 0:00:06]} Nc6 {[%emt 0:00:24]} 71. Bd1 {[%emt 0:00:10]} Nd4 {[%emt 0:00:11]} 72. Ke3 {[%emt 0:00:07]} Ne6 {[%emt 0:00:03]} 73. Ke4 {[%emt 0:00:11]} Ng7 74. Kf3 {[%emt 0:00:16]} Kf5 {[%emt 0:00:10]} 75. Ke3 {[%emt 0:00:06]} Ke5 {[%emt 0:00:02]} 76. Kf3 {[%emt 0:00:10]} Kd4 {[%emt 0:00:04]} 77. Kf4 {[%emt 0:00:10]} Kd3 {[%emt 0:00:27]} 78. Bxh5 {[%emt 0:00:14]} Nxh5+ {[%emt 0:00:02]} 79. Kf5 {[%emt 0:00:01]} Ke3 {[%emt 0:00:12]} 80. g4 {[%emt 0:00:02]} Nf4 {[%emt 0:00:05]} 81. Kxf6 {[%emt 0:00:03]} Kf3 {[%emt 0:00:02]} 1/2-1/2

[Event "Moscow Rapid-ch 2018"]
[Site "Moscow"]
[Date "2018.12.09"]
[Round "7"]
[White "Dvalishvili, Pavel S."]
[Black "Gurvich, Vitaly"]
[Result "1/2-1/2"]
[ECO "E62"]
[WhiteElo "2396"]
[BlackElo "2270"]
[Annotator "NA"]
[PlyCount "49"]
[EventDate "2018.12.08"]
[EventType "swiss"]
[EventCountry "RUS"]
[SourceTitle "playchess.com"]
[Source "ChessBase"]
[SourceQuality "1"]
[TimeControl "900+10"]

1. d4 {[%emt 0:00:00]} Nf6 {[%emt 0:00:00]} 2. Nf3 {[%emt 0:00:00]} g6 {[%emt 0:00:00]} 3. c4 {[%emt 0:00:00]} Bg7 {[%emt 0:00:00]} 4. Nc3 {[%emt 0:00:00]} O-O {[%emt 0:00:05]} 5. g3 {[%emt 0:00:09]} d6 {[%emt 0:00:01]} 6. Bg2 {[%emt 0:00:02]} Bg4 {[%emt 0:00:07]} 7. O-O {[%emt 0:00:19]} Nc6 {[%emt 0:00:13]} 8. h3 {[%emt 0:01:03]} Bxf3 9. Bxf3 {[%emt 0:00:01]} Nd7 {[%emt 0:00:13]} 10. Be3 {[%emt 0:00:37]} e5 {[%emt 0:00:03]} 11. Bxc6 {[%emt 0:00:57]} bxc6 {[%emt 0:00:12]} 12. Rc1 {[%emt 0:00:02]} f5 {[%emt 0:01:17]} 13. dxe5 {[%emt 0:00:02]} Nxe5 {[%emt 0:00:31]} 14. b3 {[%emt 0:00:01]} Qe7 {[%emt 0:01:42]} 15. Qd2 {[%emt 0:00:10]} Rfe8 {[%emt 0:00:16]} 16. Rfe1 {[%emt 0:00:24]} a5 {[%emt 0:01:43]} 17. Kg2 {[%emt 0:00:23]} Nd7 {[%emt 0:01:31]} 18. Bd4 {[%emt 0:00:33]} Bxd4 {[%emt 0:00:10]} 19. Qxd4 {[%emt 0:00:01]} Nc5 {[%emt 0:00:04]} 20. Rb1 {[%emt 0:02:40]} Rab8 {[%emt 0:00:54]} 21. e3 {[%emt 0:00:41]} Qf7 {[%emt 0:01:10]} 22. e4 {[%emt 0:01:21]} f4 {[%emt 0:02:23]} 23. e5 {[%emt 0:00:01]} fxg3 {[%emt 0:00:16]} 24. fxg3 {[%emt 0:00:04]} Qg7 {[%emt 0:00:49]} 25. Rbd1 {[%emt 0:00:08]} 1/2-1/2

[Event "Moscow Rapid-ch 2018"]
[Site "Moscow"]
[Date "2018.12.09"]
[Round "7"]
[White "Tsvetkov, Andrey"]
[Black "Lavrov, Maxim"]
[Result "1/2-1/2"]
[ECO "E91"]
[WhiteElo "2338"]
[BlackElo "2387"]
[Annotator "NA"]
[PlyCount "41"]
[EventDate "2018.12.08"]
[EventType "swiss"]
[EventCountry "RUS"]
[SourceTitle "playchess.com"]
[Source "ChessBase"]
[SourceQuality "1"]
[TimeControl "900+10"]

1. d4 Nf6 2. c4 g6 3. Nc3 Bg7 4. e4 d6 5. Nf3 O-O 6. Be2 Nbd7 7. O-O e5 8. Be3 a5 9. a3 exd4 10. Nxd4 Nc5 11. f3 a4 12. Qc2 Nh5 13. Rad1 Re8 14. Rfe1 Be5 15. Bf2 c6 16. g3 Qg5 17. Bf1 Nf6 18. Be3 Qh5 19. f4 Bxd4 20. Rxd4 Bh3 {[%emt 0:17:34]} 21. Rxd6 {[%emt 0:17:57]} 1/2-1/2

[Event "Moscow Rapid-ch 2018"]
[Site "Moscow"]
[Date "2018.12.09"]
[Round "7"]
[White "Paramzina, Anastasya"]
[Black "Kanevskaya, Anna"]
[Result "1-0"]
[ECO "C50"]
[WhiteElo "2229"]
[BlackElo "2105"]
[Annotator "NA"]
[PlyCount "61"]
[EventDate "2018.12.08"]
[EventType "swiss"]
[EventCountry "RUS"]
[SourceTitle "playchess.com"]
[Source "ChessBase"]
[SourceQuality "1"]
[TimeControl "900+10"]

1. e4 e5 2. Nf3 Nc6 3. Bc4 Bc5 4. d3 Nf6 5. O-O d6 6. c3 a6 7. Bb3 Ba7 8. Nbd2 Ne7 9. Re1 h6 10. Nf1 Ng6 11. h3 O-O 12. Ng3 Be6 13. d4 Qd7 14. Kh2 Bxb3 15. Qxb3 Qb5 16. Qc2 Rae8 17. Be3 Bb6 18. a4 Qd7 19. a5 exd4 20. Nxd4 Ba7 21. f4 c6 22. Rad1 Bb8 23. Ndf5 Nxe4 24. Nxh6+ gxh6 25. Nxe4 Qf5 26. Bd4 Qxf4+ 27. g3 Qf3 28. Nf6+ Kh8 29. Nxe8+ Ne5 30. Nxd6 f6 31. Bxe5 1-0